{"text_format":"1","workbook":"xlsx","n_sheets":3,"sheets":["Candidat","Edition","Liste"],"not_rendered":{"charts":0,"images":1,"macros":1,"external_links":1,"defined_names":8,"comments":0,"pivot_tables":0},"unopened":[],"bounds":{"document_bytes":16777216,"sheet_cells":100000,"rows_first":2000,"rows_last":500,"rows_between":2000,"halvings":0,"cell_chars":16384,"cell_head_chars":4096},"cells_cut":0,"cells_raw":0,"read":"whole","date_system":"1900"}

{"sheet":"Candidat","index":0,"n_rows":115,"n_cols":16,"rows_kept":115,"cut":false,"hidden":false,"merged":[[38,0,38,1],[42,0,42,1],[33,0,33,1],[1,3,1,4],[1,0,1,1],[11,0,11,1],[20,0,20,1],[31,0,31,1],[0,0,0,7],[114,0,115,4],[96,0,98,1],[78,0,78,1],[82,0,82,1],[86,0,86,1],[105,0,105,4],[99,0,99,1],[90,0,90,1],[65,0,65,1],[70,0,70,1],[47,0,47,1],[53,0,53,1],[1,6,1,7],[57,0,57,1],[61,0,61,1]]}
["SAISIE D'UNE CANDIDATURE MASTER1",null,null,null,null,null,null,null,null,null,null,"Monsieur","GEII - Génie Electrique et Informatique Industrielle","S","Assez Bien","Etudes"]
["ETAT CIVIL DU CANDIDAT",null,null,"LICENCE",null,null,"MASTER",null,null,null,null,"Madame","GIM - Génie Industriel et Maintenance","STI","Bien","Stage"]
["Civilité",null,null,"Spécialité de la Licence",null,null,"Spécialité du Master",null,null,null,null,null,"GMP - Génie Mécanique et Productique","STL","Très Bien","Autre"]
["Nom",null,null,"Année d'obtention de la Licence",null,null,"Année d'obtention du Master",null,null,null,null,null,"MAT - Chimie - option Matériaux","Bac Pro industriel","Pas de mention"]
["1er Prénom",null,null,"Nom de l'établissement",null,null,"Nom de l'établissement",null,null,null,null,null,"MP - Mesures Physiques","Bac européen"]
["2ème Prénom",null,null,"Adresse ligne 1 établissement",null,null,"Adresse ligne 1 établissement",null,null,null,null,null,null,"Bac international"]
["Date de naissance",null,null,"Adresse ligne 2 établissement",null,null,"Adresse ligne 2 établissement",null,null,null,null,null,null,"Titre étranger admis en équivalence"]
["Ville de naissance",null,null,"Code postal établissement",null,null,"Code postal établissement",null,null,null,null,null,null,"Autre équivalence"]
["N° Département de naissance",null,null,"Ville établissement",null,null,"Ville établissement"]
["Pays de naissance",null,null,"N° Département établissement",null,null,"N° Département établissement"]
["Pays de la nationalité",null,null,"Résultats 1ère année Licence - 1er semestre",null,null,"Résultats 1ère année Master - 1er semestre"]
["ADRESSE DU CANDIDAT",null,null,"Moyenne générale/20",null,null,"Moyenne générale/20"]
["Adresse ligne 1",null,null,"Classement dans la promotion",null,null,"Classement dans la promotion"]
["Adresse ligne 2",null,null,"Nombre d'élèves dans la promotion",null,null,"Nombre d'élèves dans la promotion"]
["Code postal",null,null,"Résultats 1ère année Licence - 2ème semestre",null,null,"Résultats 1ère année Master - 2ème semestre"]
["Ville",null,null,"Moyenne générale/20",null,null,"Moyenne générale/20"]
["Pays",null,null,"Classement dans la promotion",null,null,"Classement dans la promotion"]
["Téléphone famille",null,null,"Nombre d'élèves dans la promotion",null,null,"Nombre d'élèves dans la promotion"]
["Téléphone portable",null,null,"Résultats 2ème année Licence - 1er semestre",null,null,"Résultats 2ème année Master - 1er semestre"]
["Courriel",null,null,"Moyenne générale/20",null,null,"Moyenne générale/20"]
["BACCALAUREAT (ou diplôme équivalent pour les étudiants étrangers)",null,null,"Classement dans la promotion",null,null,"Classement dans la promotion"]
["Série",null,null,"Nombre d'élèves dans la promotion",null,null,"Nombre d'élèves dans la promotion"]
["Année d'obtention",null,null,"Résultats 2ème année Licence - 2ème semestre",null,null,"Résultats 2ème année Master - 2ème semestre"]
["Mention",null,null,"Moyenne générale/20",null,null,"Moyenne générale/20"]
["N° Département obtention du bac",null,null,"Classement dans la promotion",null,null,"Classement dans la promotion"]
["Pays obtention du bac",null,null,"Nombre d'élèves dans la promotion",null,null,"Nombre d'élèves dans la promotion"]
["N° INE (ou BEA)",null,null,"Résultats 3ème année Licence - 1er semestre"]
[null,null,null,"Moyenne générale/20"]
["Si vous avez effectué une autre formation post-baccalauréat",null,null,"Classement dans la promotion"]
["Cliquer sur \"Afficher\" en face de la formation concernée pour saisir les informations",null,null,"Nombre d'élèves dans la promotion"]
[null,null,null,"Résultats 3ème année Licence - 2ème semestre"]
["Autres formations post-baccalauréat",null,null,"Moyenne générale/20"]
[null,null,null,"Classement dans la promotion"]
["Classe préparatoire ATS",null,null,"Nombre d'élèves dans la promotion"]
[]
["Année"]
["Nom de l'établissement"]
["Ville"]
["Résultats 1er semestre"]
["Moyenne générale/20"]
["Classement dans la promotion"]
["Nombre d'élèves dans la promotion"]
["Résultats 2ème semestre"]
["Moyenne générale/20"]
["Classement dans la promotion"]
["Nombre d'élèves dans la promotion"]
[]
["CPGE (MP, PSI…)"]
[]
["Spécialité"]
["Année"]
["Nom de l'établissement"]
["Ville"]
["Résultats 1ère année - 1er semestre"]
["Moyenne générale/20"]
["Classement dans la promotion"]
["Nombre d'élèves dans la promotion"]
["Résultats 1ère année - 2ème semestre"]
["Moyenne générale/20"]
["Classement dans la promotion"]
["Nombre d'élèves dans la promotion"]
["Résultats 2ème année - 1er semestre"]
["Moyenne générale/20"]
["Classement dans la promotion"]
["Nombre d'élèves dans la promotion"]
["Résultats 2ème année - 2ème semestre"]
["Moyenne générale/20"]
["Classement dans la promotion"]
["Nombre d'élèves dans la promotion"]
[]
["Autres formations"]
[]
["Intitulé de la formation"]
["Spécialité"]
["Année"]
["Nom de l'établissement"]
["Ville"]
["Pays"]
["Résultats 1ère année - 1er semestre"]
["Moyenne générale/20"]
["Classement dans la promotion"]
["Nombre d'élèves dans la promotion"]
["Résultats 1ère année - 2ème semestre"]
["Moyenne générale/20"]
["Classement dans la promotion"]
["Nombre d'élèves dans la promotion"]
["Résultats 2ème année - 1er semestre"]
["Moyenne générale/20"]
["Classement dans la promotion"]
["Nombre d'élèves dans la promotion"]
["Résultats 2ème année - 2ème semestre"]
["Moyenne générale/20"]
["Classement dans la promotion"]
["Nombre d'élèves dans la promotion"]
[]
["Si vous avez eu une interruption d'études ou un redoublement dans votre cursus universitaire, indiquez pourquoi :"]
[]
[]
[]
["Indiquez, ci-dessous, les autres établissements dans lesquels vous avez candidaté :"]
["Nom + Ville Etablissement 1","Nom + Ville Etablissement 4"]
["Nom + Ville Etablissement 2","Nom + Ville Etablissement 5"]
["Nom + Ville Etablissement 3","Nom + Ville Etablissement 6"]
[]
[]
["Veuillez bien suivre les instructions suivantes pour l'engistrement de votre fichier :"]
["Enregistrer sous Excel 2007","Nom du fichier : indiquer le nom du fichier suivant : MASTER-Votre NOM-Votre PRENOM : exemple : MASTER-DURAND-PAUL"]
[null,"Type de fichier : choisir \"Classeur Excel (prenant en charge les macros)\" si cela n'est pas indiqué par défaut"]
[]
["Enregistrer sous Excel 2010","Nom du fichier : indiquer le nom du fichier suivant : MASTER-Votre NOM-Votre PRENOM : exemple : MASTER-DURAND-PAUL"]
[null,"Type de fichier : choisir \"Classeur Excel (prenant en charge les macros) (*.xlsm)\" si cela n'est pas indiqué par défaut"]
[]
["Une fois le fichier enregistré, envoyez-le par courriel à isabelle.ligier@ens2m.fr"]
[]
["Toutes les rubriques en vert sont obligatoires et doivent être renseignées ; dans le cas contraire, la fiche sera retournée au candidat ; si la fiche n'est pas retournée correctement remplie dans les délais fixés, le dossier du candidat ne sera pas examiné par le jury."]

{"sheet":"Edition","index":1,"n_rows":105,"n_cols":4,"rows_kept":105,"cut":false,"hidden":true,"merged":[[73,0,73,3],[84,0,84,3],[97,0,97,3],[99,0,100,3],[66,0,66,3],[6,0,6,3],[16,0,16,3],[25,0,25,3],[32,0,32,3],[65,0,65,3],[50,0,50,3],[0,0,0,3],[1,0,1,3],[2,1,2,3],[3,0,5,0],[3,1,5,1],[3,2,5,3]]}
["Admission sur titre avec un Master"]
["Réservé ENSMM"]
["Dossier n°",{"$f":"Candidat!E3","v":0}]
["Décision du jury","Admis liste principale                                           Admis liste complémentaire                              Refusé","Décision du candidat"]
[]
[]
["Etat Civil"]
["Civilité",{"$f":"Candidat!B3","v":0}]
["Nom",{"$f":"UPPER(Candidat!B4)","v":""}]
["1er Prénom",{"$f":"Candidat!B5","v":0}]
["2ème Prénom",{"$f":"IF(Candidat!B6=\"\",\"\",Candidat!B6)","v":""}]
["Date de naissance",{"$f":"Candidat!B7","v":"00:00:00"}]
["Ville de naissance",{"$f":"UPPER(Candidat!B8)","v":""}]
["N° Département de naissance",{"$f":"Candidat!B9","v":0}]
["Pays de naissance",{"$f":"UPPER(Candidat!B10)","v":""}]
["Pays de la nationalité",{"$f":"UPPER(Candidat!B11)","v":""}]
["Adresse"]
["Adresse ligne 1",{"$f":"Candidat!B13","v":0}]
["Adresse ligne 2",{"$f":"IF(Candidat!B14=\"\",\"\",Candidat!B14)","v":""}]
["Code postal",{"$f":"Candidat!B15","v":0}]
["Ville",{"$f":"Candidat!B16","v":0}]
["Pays",{"$f":"Candidat!B17","v":0}]
["Téléphone famille",{"$f":"Candidat!B18","v":0}]
["Téléphone portable",{"$f":"Candidat!B19","v":0}]
["Courriel",{"$f":"Candidat!B20","v":0}]
["Baccalauréat                                                                                                                         (ou diplôme équivalent pour les étudiants étrangers)"]
["Série",{"$f":"Candidat!B22","v":0}]
["Année d'obtention",{"$f":"Candidat!B23","v":0}]
["Mention",{"$f":"Candidat!B24","v":0}]
["N° Département du bac",{"$f":"Candidat!B25","v":0}]
["Pays obtention du bac",{"$f":"Candidat!B26","v":0}]
["N° INE (ou BEA)",{"$f":"UPPER(Candidat!B27)","v":""}]
["Licence"]
["Spécialité de la licence",{"$f":"UPPER(Candidat!E3)","v":""}]
["Année d'obtention de la licence",{"$f":"Candidat!E4","v":0}]
["Nom de l'établissement",{"$f":"UPPER(Candidat!E5)","v":""}]
["Adresse ligne 1 établissement",{"$f":"Candidat!E6","v":0}]
["Adresse ligne 2 établissement",{"$f":"Candidat!E7","v":0}]
["Code postal établissement",{"$f":"Candidat!E8","v":0}]
["Ville établissement",{"$f":"UPPER(Candidat!E9)","v":""}]
["N° Département établissement",{"$f":"Candidat!E10","v":0}]
["Résultats 1ère année","Moyenne générale/20","Classement","Nombre d'élèves"]
["1er semestre",{"$f":"Candidat!E12","v":0},{"$f":"Candidat!E13","v":0},{"$f":"Candidat!E14","v":0}]
["2ème semestre",{"$f":"Candidat!E16","v":0},{"$f":"Candidat!E17","v":0},{"$f":"Candidat!E18","v":0}]
["Résultats 2ème année","Moyenne générale/20","Classement","Nombre d'élèves"]
["1er semestre",{"$f":"Candidat!E20","v":0},{"$f":"Candidat!E21","v":0},{"$f":"Candidat!E22","v":0}]
["2ème semestre",{"$f":"Candidat!E24","v":0},{"$f":"Candidat!E25","v":0},{"$f":"Candidat!E26","v":0}]
["Résultats 3ème année","Moyenne générale/20","Classement","Nombre d'élèves"]
["1er semestre",{"$f":"Candidat!E28","v":0},{"$f":"Candidat!E29","v":0},{"$f":"Candidat!E30","v":0}]
["2ème semestre",{"$f":"Candidat!E32","v":0},{"$f":"Candidat!E33","v":0},{"$f":"Candidat!E34","v":0}]
["Master"]
["Spécialité du Master",{"$f":"UPPER(Candidat!H3)","v":""}]
["Année d'obtention du Master",{"$f":"Candidat!H4","v":0}]
["Nom de l'établissement",{"$f":"UPPER(Candidat!H5)","v":""}]
["Adresse ligne 1 établissement",{"$f":"Candidat!H6","v":0}]
["Adresse ligne 2 établissement",{"$f":"Candidat!H7","v":0}]
["Code postal établissement",{"$f":"Candidat!H8","v":0}]
["Ville établissement",{"$f":"UPPER(Candidat!H9)","v":""}]
["N° Département établissement",{"$f":"Candidat!H10","v":0}]
["Résultats 1ère année","Moyenne générale/20","Classement","Nombre d'élèves"]
["1er semestre",{"$f":"Candidat!H12","v":0},{"$f":"Candidat!H13","v":0},{"$f":"Candidat!H14","v":0}]
["2ème semestre",{"$f":"Candidat!H16","v":0},{"$f":"Candidat!H17","v":0},{"$f":"Candidat!H18","v":0}]
["Résultats 2ème année","Moyenne générale/20","Classement","Nombre d'élèves"]
["1er semestre",{"$f":"Candidat!H20","v":0},{"$f":"Candidat!H21","v":0},{"$f":"Candidat!H22","v":0}]
["2ème semestre",{"$f":"Candidat!H24","v":0},{"$f":"Candidat!H25","v":0},{"$f":"Candidat!H26","v":0}]
["Autres études post-baccalauréat"]
["Classe préparatoire ATS"]
["Année",{"$f":"IF(Candidat!B36=\"\",\"\",Candidat!B36)","v":""}]
["Nom de l'établissement",{"$f":"UPPER(IF(Candidat!B37=\"\",\"\",Candidat!B37))","v":""}]
["Ville",{"$f":"UPPER(IF(Candidat!B38=\"\",\"\",Candidat!B38))","v":""}]
["Résultats ATS","Moyenne générale/20","Classement","Nombre d'élèves"]
["1er semestre",{"$f":"Candidat!B40","v":0},{"$f":"Candidat!B41","v":0},{"$f":"Candidat!B42","v":0}]
["2ème semestre",{"$f":"Candidat!B44","v":0},{"$f":"Candidat!B45","v":0},{"$f":"Candidat!B46","v":0}]
["CPGE (MP, PC, PSI, PT, TSI….)"]
["Spécialité",{"$f":"IF(Candidat!B50=\"\",\"\",Candidat!B50)","v":""}]
["Année",{"$f":"IF(Candidat!B51=\"\",\"\",Candidat!B51)","v":""}]
["Nom de l'établissement",{"$f":"UPPER(IF(Candidat!B52=\"\",\"\",Candidat!B52))","v":""}]
["Ville",{"$f":"UPPER(IF(Candidat!B53=\"\",\"\",Candidat!B53))","v":""}]
["Résultats 1ère année (DUT1)","Moyenne générale/20","Classement","Nombre d'élèves"]
["1er semestre",{"$f":"Candidat!B55","v":0},{"$f":"Candidat!B56","v":0},{"$f":"Candidat!B57","v":0}]
["2ème semestre",{"$f":"Candidat!B59","v":0},{"$f":"Candidat!B60","v":0},{"$f":"Candidat!B61","v":0}]
["Résultats 2ème année (DUT2)","Moyenne générale/20","Classement","Nombre d'élèves"]
["1er semestre",{"$f":"Candidat!B63","v":0},{"$f":"Candidat!B64","v":0},{"$f":"Candidat!B65","v":0}]
["2ème semestre",{"$f":"Candidat!B67","v":0},{"$f":"Candidat!B68","v":0},{"$f":"Candidat!B69","v":0}]
["Autres formations"]
["Intitulé de la formation",{"$f":"UPPER(Candidat!B73)","v":""}]
["Spécialité",{"$f":"UPPER(Candidat!B74)","v":""}]
["Année",{"$f":"Candidat!B75","v":0}]
["Nom de l'établissement",{"$f":"UPPER(Candidat!B76)","v":""}]
["Ville",{"$f":"UPPER(Candidat!B77)","v":""}]
["Pays",{"$f":"UPPER(Candidat!B78)","v":""}]
["Résultats 1ère année","Moyenne générale/20","Classement","Nombre d'élèves"]
["1er semestre",{"$f":"Candidat!B80","v":0},{"$f":"Candidat!B81","v":0},{"$f":"Candidat!B82","v":0}]
["2ème semestre",{"$f":"Candidat!B84","v":0},{"$f":"Candidat!B85","v":0},{"$f":"Candidat!B86","v":0}]
["Résultats 2ème année","Moyenne générale/20","Classement","Nombre d'élèves"]
["1er semestre",{"$f":"Candidat!B88","v":0},{"$f":"Candidat!B89","v":0},{"$f":"Candidat!B90","v":0}]
["2ème semestre",{"$f":"Candidat!B92","v":0},{"$f":"Candidat!B93","v":0},{"$f":"Candidat!B94","v":0}]
["Renseignements complémentaires"]
["Interruption d'études :"]
[{"$f":"Candidat!A97","v":0}]
[]
["Candidature dans les établissements suivants :"]
[{"$f":"IF(Candidat!A101=\"Nom + Ville Etablissement 1\",\"\",Candidat!A101)","v":""},{"$f":"IF(Candidat!B101=\"Nom + Ville Etablissement 4\",\"\",Candidat!B101)","v":""}]
[{"$f":"IF(Candidat!A102=\"Nom + Ville Etablissement 2\",\"\",Candidat!A102)","v":""},{"$f":"IF(Candidat!B102=\"Nom + Ville Etablissement 5\",\"\",Candidat!B102)","v":""}]
[{"$f":"IF(Candidat!A103=\"Nom + Ville Etablissement 3\",\"\",Candidat!A103)","v":""},{"$f":"IF(Candidat!B103=\"Nom + Ville Etablissement 6\",\"\",Candidat!B103)","v":""}]

{"sheet":"Liste","index":2,"n_rows":2,"n_cols":127,"rows_kept":2,"cut":false,"hidden":true,"merged":[]}
["N° ligne","N° dossier","Civilité","Nom","1er Prénom","2e Prénom","Date Nais","Age","Ville Nais","Départ Nais","Pays Nais","Nationalité","Adr1","Adr2","CP","Ville","Pays","Tél famille","Tél portable","Courriel","Série bac","Année bac","Mention","Dépt bac","Pays bac","INE","Licence","Année Licence","Nom de l'établissement","Adresse ligne 1 établissement","Adresse ligne 2 établissement","Code Postal établissement","Ville établissement","Dépt établissement","Moy1","Class1","Nbre1","% S1","Moy2","Class2","Nbre2","% S2","Moy3","Class3","Nbre3","% S3","Moy4","Class4","Nbre4","% S4","Moy5","Class5","Nbre5","% S5","Moy6","Class6","Nbre6","% S6","Master","Année Master","Nom de l'établissement","Adresse ligne 1 établissement","Adresse ligne 2 établissement","Code Postal établissement","Ville établissement","Dépt établissement","Moy7","Class7","Nbre7","% S7","Moy8","Class8","Nbre8","% S8","Moy géné","% Moy","Moy9","Class9","Nbre9","% S9","Moy10","Class10","Nbre10","% S10","Année ATS","Lycée ATS","Ville ATS","MoyATS1","ClassATS1","NbreATS1","MoyATS2","ClassATS2","NbreATS2","Type CPGE","Année CPGE","Lycée CPGE","Ville CPGE","MoyCPGE1","ClassCPGE1","NbreCPGE1","MoyCPGE2","ClassCPGE2","NbreCPGE2","MoyCPGE3","ClassCPGE3","NbreCPGE3","MoyCPGE4","ClassCPGE4","NbreCPGE4","Autre formation","Spécialité","Année formation","Etablissement","Ville formation","Pays formation","Moy autre1","Class autre1","Nbre autre1","Moy autre2","Class autre2","Nbre autre2","Moy autre3","Class autre3","Nbre autre3","Moy autre4","Class autre4","Nbre autre4"]
[null,null,{"$f":"Candidat!B3","v":0},{"$f":"Candidat!B4","v":0},{"$f":"Candidat!B5","v":0},{"$f":"Candidat!B6","v":0},{"$f":"Candidat!B7","v":"00:00:00"},{"$f":"IF(MONTH(TODAY())<MONTH(G2),YEAR(TODAY())-YEAR(G2)-1,YEAR(TODAY())-YEAR(G2))","v":121},{"$f":"UPPER(Candidat!B8)","v":""},{"$f":"Candidat!B9","v":0},{"$f":"UPPER(Candidat!B10)","v":""},{"$f":"UPPER(Candidat!B11)","v":""},{"$f":"Candidat!B13","v":0},{"$f":"Candidat!B14","v":0},{"$f":"Candidat!B15","v":0},{"$f":"UPPER(Candidat!B16)","v":""},{"$f":"UPPER(Candidat!B17)","v":""},{"$f":"Candidat!B18","v":0},{"$f":"Candidat!B19","v":0},{"$f":"Candidat!B20","v":0},{"$f":"Candidat!B22","v":0},{"$f":"Candidat!B23","v":0},{"$f":"Candidat!B24","v":0},{"$f":"Candidat!B25","v":0},{"$f":"UPPER(Candidat!B26)","v":""},{"$f":"Candidat!B27","v":0},{"$f":"UPPER(Candidat!E3)","v":""},{"$f":"Candidat!E4","v":0},{"$f":"Candidat!E5","v":0},{"$f":"Candidat!E6","v":0},{"$f":"Candidat!E7","v":0},{"$f":"Candidat!E8","v":0},{"$f":"Candidat!E9","v":0},{"$f":"Candidat!E10","v":0},{"$f":"Candidat!E12","v":0},{"$f":"Candidat!E13","v":0},{"$f":"Candidat!E14","v":0},null,{"$f":"Candidat!E16","v":0},{"$f":"Candidat!E17","v":0},{"$f":"Candidat!E18","v":0},null,{"$f":"Candidat!E20","v":0},{"$f":"Candidat!E21","v":0},{"$f":"Candidat!E22","v":0},null,{"$f":"Candidat!E24","v":0},{"$f":"Candidat!E25","v":0},{"$f":"Candidat!E26","v":0},null,{"$f":"Candidat!E28","v":0},{"$f":"Candidat!E29","v":0},{"$f":"Candidat!E30","v":0},null,{"$f":"Candidat!E32","v":0},{"$f":"Candidat!E33","v":0},{"$f":"Candidat!E34","v":0},null,{"$f":"UPPER(Candidat!H3)","v":""},{"$f":"Candidat!H4","v":0},{"$f":"UPPER(Candidat!H5)","v":""},{"$f":"Candidat!H6","v":0},{"$f":"Candidat!H7","v":0},{"$f":"Candidat!H8","v":0},{"$f":"UPPER(Candidat!H9)","v":""},{"$f":"Candidat!H10","v":0},{"$f":"Candidat!H12","v":0},{"$f":"Candidat!H13","v":0},{"$f":"Candidat!H14","v":0},null,{"$f":"Candidat!H16","v":0},{"$f":"Candidat!H17","v":0},{"$f":"Candidat!H18","v":0},null,null,null,{"$f":"Candidat!H20","v":0},{"$f":"Candidat!H21","v":0},{"$f":"Candidat!H22","v":0},null,{"$f":"Candidat!H24","v":0},{"$f":"Candidat!H25","v":0},{"$f":"Candidat!H26","v":0},null,{"$f":"Candidat!B36","v":0},{"$f":"UPPER(Candidat!B37)","v":""},{"$f":"UPPER(Candidat!B38)","v":""},{"$f":"Candidat!B40","v":0},{"$f":"Candidat!B41","v":0},{"$f":"Candidat!B42","v":0},{"$f":"Candidat!B44","v":0},{"$f":"Candidat!B45","v":0},{"$f":"Candidat!B46","v":0},{"$f":"Candidat!B50","v":0},{"$f":"Candidat!B51","v":0},{"$f":"UPPER(Candidat!B52)","v":""},{"$f":"UPPER(Candidat!B53)","v":""},{"$f":"Candidat!B55","v":0},{"$f":"Candidat!B56","v":0},{"$f":"Candidat!B57","v":0},{"$f":"Candidat!B59","v":0},{"$f":"Candidat!B60","v":0},{"$f":"Candidat!B61","v":0},{"$f":"Candidat!B63","v":0},{"$f":"Candidat!B64","v":0},{"$f":"Candidat!B65","v":0},{"$f":"Candidat!B67","v":0},{"$f":"Candidat!B68","v":0},{"$f":"Candidat!B69","v":0},{"$f":"UPPER(Candidat!B73)","v":""},{"$f":"UPPER(Candidat!B74)","v":""},{"$f":"Candidat!B75","v":0},{"$f":"UPPER(Candidat!B76)","v":""},{"$f":"UPPER(Candidat!B77)","v":""},{"$f":"UPPER(Candidat!B78)","v":""},{"$f":"Candidat!B80","v":0},{"$f":"Candidat!B81","v":0},{"$f":"Candidat!B82","v":0},{"$f":"Candidat!B84","v":0},{"$f":"Candidat!B85","v":0},{"$f":"Candidat!B86","v":0},{"$f":"Candidat!B88","v":0},{"$f":"Candidat!B89","v":0},{"$f":"Candidat!B90","v":0},{"$f":"Candidat!B92","v":0},{"$f":"Candidat!B93","v":0},{"$f":"Candidat!B94","v":0}]